fUSD/lending_fUSD_20250630
["ID","MTS","AMOUNT","RATE_DAILY","PERIOD"]
[368702271,1751310633256,-206.33422799,0.00013394,2]
[368702272,1751310633266,-151.0,0.00013394,2]
[368702273,1751310633277,-300.0,0.00013394,2]
[368702274,1751310633287,-151.0,0.00013394,2]
[368702275,1751310633297,-300.0,0.00013394,2]
[368702276,1751310633307,-300.0,0.00013394,2]
[368702277,1751310633316,-151.0,0.00013394,2]
[368702278,1751310633326,-300.0,0.00013394,2]
[368702279,1751310633336,-151.0,0.00013394,2]
[368702280,1751310633345,-300.0,0.00013394,2]
[368702281,1751310633357,-151.0,0.00013394,2]
[368702282,1751310633370,-300.0,0.00013394,2]
[368702283,1751310633379,-151.0,0.00013394,2]
[368702284,1751310633389,-400.0,0.00013394,2]
[368702285,1751310633399,-151.0,0.00013394,2]
[368702286,1751310633409,-151.0,0.00013394,2]
[368702287,1751310633419,-151.0,0.00013394,2]
[368702288,1751310633430,-151.0,0.00013394,2]
[368702289,1751310633441,-151.0,0.00013394,2]
[368702290,1751310633451,-151.0,0.00013394,2]
[368702291,1751310633461,-151.0,0.00013394,2]
[368702292,1751310633470,-151.0,0.00013394,2]
[368702293,1751310633480,-151.0,0.00013394,2]
[368702294,1751310633489,-300.0,0.00013394,2]
[368702295,1751310633499,-300.0,0.00013394,2]
[368702296,1751310633509,-300.0,0.00013394,2]
[368702297,1751310633520,-300.0,0.00013394,2]
[368702298,1751310633530,-300.0,0.00013394,2]
[368702299,1751310633541,-257.5731563,0.00013394,2]
[368702300,1751310633551,-1739.96221657,0.00013395,2]
[368702301,1751310633562,-64839.27796965,0.00013402,2]
[368702302,1751310633571,-4852.42324352,0.00013449,2]
[368702303,1751310633581,-517.0,0.00013475,2]
[368702304,1751310633593,-3571.44,0.000135,2]
[368702305,1751310633603,-9999.99,0.000135,2]
[368702306,1751310633616,-646.773,0.000136,2]
[368702307,1751310633626,-3177.78949738,0.00013651,2]
[368702308,1751310633636,-233.83071042,0.00013681,2]
[368702309,1751310633646,-200.0,0.00013699,2]
[368702310,1751310633656,-572.62,0.00013699,2]
[368702311,1751310633666,-182.0,0.00013702,2]
[368702312,1751310633675,-161.702123,0.00013719,2]
[368702313,1751310633685,-2545.23045073,0.00013724,2]
[368702314,1751310633696,-16460.50885127,0.00013756,2]
[368702315,1751310633706,-161.87,0.0001376,2]
[368702316,1751310633716,-1163.0,0.00013763,2]
[368702317,1751310633726,-7149.0,0.00013763,2]
[368702318,1751310633736,-4105.0,0.00013763,2]
[368702319,1751310633745,-1723.68743954,0.0001377,2]
[368702320,1751310633755,-16460.50885125,0.00013772,2]
[368702321,1751310633766,-150.0,0.0001378,2]
[368702322,1751310633776,-187.72840211,0.00013785,2]
[368702323,1751310633785,-16460.50885125,0.00013788,2]
[368702324,1751310633795,-184.47,0.00013794,2]
[368702325,1751310633805,-3721.21310313,0.000138,2]
[368702326,1751310633815,-189.98421409,0.000138,2]
[368702327,1751310633825,-16460.50885125,0.00013804,2]
[368702328,1751310633835,-2744.55071021,0.00013805,2]
[368702329,1751310633845,-3721.21310308,0.00013811,2]
[368702330,1751310633855,-742.2733237,0.00013814,2]
[368702331,1751310633865,-16460.50885125,0.0001382,2]
[368702332,1751310633875,-3721.21310308,0.00013822,2]
[368702333,1751310633884,-835.8297818,0.00013829,2]
[368702334,1751310633894,-3721.21310308,0.00013833,2]
[368702335,1751310633904,-16460.50885125,0.00013836,2]
[368702336,1751310633914,-255.39,0.00013842,2]
[368702337,1751310633924,-184.47,0.00013842,2]
[368702338,1751310633934,-3721.21310308,0.00013844,2]
[368702339,1751310633943,-16460.50885125,0.00013852,2]
[368702340,1751310633954,-3721.21310308,0.00013856,2]
[368702341,1751310633964,-151.0,0.00013856,2]
[368702342,1751310633974,-151.0,0.00013856,2]
[368702343,1751310633984,-1664.05568,0.0001386,2]
[368702344,1751310633994,-3721.21310308,0.00013867,2]
[368702345,1751310634004,-16460.50885125,0.00013868,2]
[368702346,1751310634013,-500.0,0.00013873,2]
[368702347,1751310634022,-500.0,0.00013873,2]
[368702348,1751310634032,-500.0,0.00013873,2]
[368702349,1751310634042,-500.0,0.00013873,2]
[368702350,1751310634052,-500.0,0.00013873,2]
[368702351,1751310634062,-184.47,0.00013875,2]
[368702352,1751310634072,-3721.21310308,0.00013878,2]
[368702353,1751310634082,-16460.50885125,0.00013884,2]
[368702354,1751310634092,-150.0,0.00013885,2]
[368702355,1751310634103,-150.0,0.00013885,2]
[368702356,1751310634113,-150.0,0.00013885,2]
[368702357,1751310634122,-150.0,0.00013885,2]
[368702358,1751310634131,-3341.0,0.00013885,2]
[368702359,1751310634141,-948.0,0.00013885,2]
[368702360,1751310634151,-804.0,0.00013885,2]
[368702361,1751310634161,-639.0,0.00013885,2]
[368702362,1751310634170,-2009.0,0.00013885,2]
[368702363,1751310634180,-930.0,0.00013885,2]
[368702364,1751310634189,-1679.0,0.00013885,2]
[368702365,1751310634199,-592.0,0.00013885,2]
[368702366,1751310634208,-1281.0,0.00013885,2]
[368702367,1751310634218,-560.0,0.00013885,2]
[368702368,1751310634228,-200.0,0.00013888,2]
[368702369,1751310634238,-3721.21310308,0.00013889,2]
[368702370,1751310634247,-255.39,0.0001389,2]
[368702371,1751310634257,-184.47,0.0001389,2]
[368702372,1751310634266,-455.96,0.0001389,2]
[368702373,1751310634276,-500.0,0.000139,2]
[368702374,1751310634286,-34495.7979,0.000139,2]
[368702375,1751310634295,-3795.4628,0.000139,2]
[368702376,1751310634304,-188368.6812,0.000139,2]
[368702377,1751310634313,-1000.0,0.000139,2]
[368702378,1751310634323,-353.0138767,0.000139,2]
[368702379,1751310634333,-151.0,0.000139,2]
[368702380,1751310634342,-151.0,0.000139,2]
[368702381,1751310634352,-151.0,0.000139,2]
[368702382,1751310634364,-151.0,0.000139,2]
[368702383,1751310634374,-155.75592391,0.000139,2]
[368702384,1751310634384,-3721.21310308,0.000139,2]
[368702385,1751310634394,-151.0,0.000139,2]
[368702386,1751310634404,-800.19686048,0.000139,2]
[368702387,1751310634414,-334.55380738,0.000139,2]
[368702388,1751310634424,-16460.50885125,0.000139,2]
[368702389,1751310634435,-22530.2191097,0.000139,2]
[368702390,1751310634445,-213.96859442,0.00013942,2]
[368702391,1751310634456,-1597.92,0.00013973,2]
[368702392,1751310634466,-799.17,0.00013973,2]
[368702393,1751310634476,-501.00474571,0.00013973,2]
[368702394,1751310634485,-433.65625289,0.00013973,2]
[368702395,1751310634495,-500.0,0.00013973,2]
[368702396,1751310634506,-323.07594861,0.00013973,2]
[368702397,1751310634517,-161.71327258,0.00013973,2]
[368702398,1751310634526,-500.91971596,0.00013973,2]
[368702399,1751310634536,-500.0,0.00013973,2]
[368702400,1751310634547,-500.0,0.00013973,2]
[368702401,1751310634557,-453.34018697,0.00013973,2]
[368702402,1751310634567,-159.5547779,0.00013973,2]
[368702403,1751310634577,-500.0,0.00013973,2]
[368702404,1751310634587,-500.0,0.00013973,2]
[368702405,1751310634596,-161.76487195,0.00013973,2]
[368702406,1751310634606,-164.91488473,0.00013973,2]
[368702407,1751310634616,-159.74251697,0.00013973,2]
[368702408,1751310634626,-336.08894512,0.00013973,2]
[368702409,1751310634636,-500.0,0.00013973,2]
[368702410,1751310634646,-531.74152762,0.00013973,2]
[368702411,1751310634656,-339.693252,0.00013973,2]
[368702412,1751310634665,-500.0,0.00013973,2]
[368702413,1751310634675,-500.0,0.00013973,2]
[368702414,1751310634685,-500.0,0.00013973,2]
[368702415,1751310634695,-500.0,0.00013973,2]
[368702416,1751310634704,-150.88802396,0.00013973,2]
[368702417,1751310634714,-500.0,0.00013973,2]
[368702418,1751310634723,-500.0,0.00013973,2]
[368702419,1751310634733,-500.0,0.00013973,2]
[368702420,1751310634743,-150.0,0.00013973,2]
[368702421,1751310634753,-544.0,0.00013973,2]
[368702422,1751310634762,-500.0,0.00013973,2]
[368702423,1751310634772,-550.0,0.00013973,2]
[368702424,1751310634782,-500.0,0.00013973,2]
[368702425,1751310634791,-500.0,0.00013973,2]
[368702426,1751310634800,-656.0,0.00013973,2]
[368702427,1751310634810,-1358.0,0.00013973,2]
[368702428,1751310634821,-150.0,0.00013973,2]
[368702429,1751310634831,-500.0,0.00013973,2]
[368702430,1751310634841,-151.62912378,0.00013973,2]
[368702431,1751310634850,-500.0,0.00013973,2]
[368702432,1751310634859,-500.0,0.00013973,2]
[368702433,1751310634869,-500.0,0.00013973,2]
[368702434,1751310634879,-3740.0,0.00013973,2]
[368702435,1751310634889,-150.0,0.00013973,2]
[368702436,1751310634899,-500.0,0.00013973,2]
[368702437,1751310634909,-500.0,0.00013973,2]
[368702438,1751310634918,-150.0,0.00013973,2]
[368702439,1751310634928,-500.0,0.00013973,2]
[368702440,1751310634937,-150.0,0.00013973,2]
[368702441,1751310634947,-1673.0,0.00013973,2]
[368702442,1751310634957,-151.65,0.00013989,2]
[368702443,1751310634967,-151.65,0.00013989,2]
[368702444,1751310634977,-151.65,0.0001399,2]
[368702445,1751310634987,-151.65,0.0001399,2]
[368702446,1751310634996,-151.65,0.0001399,2]
[368702447,1751310635006,-151.65,0.0001399,2]
[368702448,1751310635016,-151.65,0.0001399,2]
[368702449,1751310635026,-6378.56944479,0.00013999,2]
[368702450,1751310635035,-151.0,0.00013999,2]
[368702451,1751310635044,-151.0,0.00013999,2]
[368702452,1751310635053,-175.127831,0.00013999,2]
[368702453,1751310635063,-175.127831,0.00013999,2]
[368702454,1751310635073,-558.0,0.00013999,2]
[368702455,1751310635083,-388616.17904505,0.00014,2]
[368702456,1751310635097,-486.94000001,0.00014,2]
[368702457,1751310635109,-5525.36273134,0.00014,2]
[368702458,1751310635159,-1092.0,0.00014,2]
[368702555,1751310639321,-358.33485164,0.00013765,2]
[368702558,1751310639333,-527.66514836,0.00013765,2]
[368702560,1751310639343,-169.354,0.00013765,2]
[368702562,1751310639352,-298.646,0.00013765,2]
[368702563,1751310639364,-437.8313512,0.00013888,2]
[368702566,1751310639376,-62.1686488,0.00013888,2]
[368702568,1751310639385,-175.51692942,0.00013888,2]
[368702570,1751310639395,-500.0,0.00013888,2]
[368702572,1751310639405,-500.0,0.00013888,2]
[368702574,1751310639414,-511.79234164,0.00013888,2]
[368702576,1751310639424,-500.0,0.00013888,2]
[368702577,1751310639434,-3409.24608891,0.00014,2]
[368702580,1751310639446,-1005.58434834,0.00014,2]
[368702582,1751310639457,-482.0,0.00014,2]
[368702584,1751310639469,-149245.90727096,0.00014,2]
[368702586,1751310639480,-32217.0,0.00014,2]
[368702588,1751310639491,-905.48961285,0.00014,2]
[368702593,1751310639530,-530.7,0.00014,2]
[368702595,1751310639541,-290.1111096,0.00014,2]
[368702611,1751310639689,-3272.05255464,0.00014,2]
[368702614,1751310639700,-12175.3581,0.00014,2]
[368702620,1751310639750,-1144.44820268,0.00014,2]
[368702622,1751310639765,-9852.464631,0.00014,2]
[368702634,1751310641397,-404.37,0.00013765,2]
[368702658,1751310646504,-452.63,0.00013765,2]
[368702659,1751310646514,-149.57997636,0.00013888,2]
[368702662,1751310783795,7153.672808,0.00013039,2]
[368702663,1751310784789,1000.0,0.00012953,2]
[368702664,1751310792295,169.88,0.00012968,2]
[368702665,1751310875348,150.0,0.00012866,2]
[368702666,1751310875506,150.0,0.00012984,2]
[368702667,1751310876208,150.0,0.0001301,2]
[368702668,1751310903495,1807.77,0.00012797,2]
[368702669,1751310933171,23900.0,0.0001278,2]
[368702670,1751310943493,2041.24394468,0.00013038,2]
[368702671,1751310990984,365.97,0.000128,2]
[368702672,1751311022877,204.69466644,0.00013038,2]
[368702673,1751311046807,2791.88,0.00012784,2]
[368702674,1751311113541,250.0,0.00012794,2]
[368702675,1751311173612,164.77,0.0001279,2]
[368702676,1751311188781,1092.37,0.00012788,2]
[368702677,1751311212304,6652.54,0.00012782,2]
[368702678,1751311259597,536.0,0.00012475,2]
[368702679,1751311299831,551.25,0.00012781,2]
[368702680,1751311304360,384.26,0.00012781,2]
[368702681,1751311325282,169.0,0.00013005,2]
[368702682,1751311326141,6912.642,0.00013098,2]
[368702683,1751311327020,207.4,0.00013098,2]
[368702684,1751311350177,204.69466643,0.00013053,2]
[368702685,1751311357892,5121.43,0.000127,2]
[368702686,1751311371730,3141.45,0.00012668,2]
[368702687,1751311383659,150.0,0.00012591,2]
[368702688,1751311450391,60999.96,0.00012591,2]
[368702689,1751311482884,158.94,0.00012686,2]
[368702692,1751311612597,200.0,0.00012651,7]
[368702693,1751311661736,204.69466643,0.00013051,2]
[368702707,1751311743429,2453.14,0.00012642,2]
[368702818,1751311784167,-181.515989,0.00013105,2]
[368702819,1751311784193,-300.0,0.00013105,2]
[368702820,1751311784218,-300.0,0.00013105,2]
[368702821,1751311784242,-1852.42,0.00013106,2]
[368702822,1751311784266,-300.0,0.00013151,2]
[368702823,1751311784291,-1200.0,0.00013152,2]
[368702824,1751311784318,-300.0,0.00013152,2]
[368702825,1751311784344,-1200.0,0.00013152,2]
[368702826,1751311784369,-169.0,0.00013161,2]
[368702827,1751311784394,-181.515989,0.0001317,2]
[368702828,1751311784418,-683.89,0.0001317,2]
[368702829,1751311784442,-1694.75,0.00013198,2]
[368702830,1751311784468,-6614.82488896,0.00013253,2]
[368702831,1751311784493,-207.4,0.00013253,2]
[368702832,1751311784517,-999.99,0.0001326,2]
[368702833,1751311784541,-1000.0,0.0001326,2]
[368702834,1751311784567,-9999.99,0.00013261,2]
[368702835,1751311784592,-2734.21,0.00013261,2]
[368702836,1751311784617,-17131.43,0.00013261,2]
[368702837,1751311784641,-16449.87,0.00013261,2]
[368702838,1751311784666,-13635.69433254,0.00013381,2]
[368702839,1751311784690,-300.0,0.00013492,2]
[368702840,1751311784715,-1000.0,0.00013492,2]
[368702841,1751311784741,-1000.0,0.00013492,2]
[368702842,1751311784767,-1000.0,0.00013492,2]
[368702843,1751311784793,-1000.0,0.00013492,2]
[368702844,1751311784819,-1000.0,0.00013492,2]
[368702845,1751311784845,-1000.0,0.00013492,2]
[368702846,1751311784870,-1000.0,0.00013492,2]
[368702847,1751311784894,-1000.0,0.00013492,2]
[368702848,1751311784917,-1000.0,0.00013492,2]
[368702849,1751311784942,-1000.0,0.00013492,2]
[368702850,1751311784966,-63.4988005,0.00013492,2]
[368702853,1751311807635,1000.0,0.00014416,4]
[368702854,1751311810114,200.0,0.000133,4]
[368702855,1751311812496,500.0,0.000134,4]
[368702856,1751311813105,3545.457145,0.00013039,2]
[368702857,1751311814254,700.0,0.000135,4]
[368702858,1751311815230,4936.69,0.00012811,2]
[368702859,1751311816982,600.0,0.000136,4]
[368702862,1751311831536,-151.64574515,0.00013105,2]
[368702863,1751311831546,-151.64574515,0.00013105,2]
[368702864,1751311831556,-213.3535624,0.00013299,2]
[368702865,1751311831754,-86.6464376,0.00013299,2]
[368702866,1751311831764,-300.0,0.00013437,2]
[368702867,1751311831775,-1200.0,0.00013491,2]
[368702868,1751311831787,-936.5011995,0.00013492,2]
[368702869,1751311831797,-500.0,0.00013492,2]
[368702870,1751311831807,-726.91364642,0.00013492,2]
[368702871,1751311831817,-500.0,0.00013492,2]
[368702872,1751311831827,-500.0,0.00013492,2]
[368702873,1751311831837,-500.0,0.00013492,2]
[368702874,1751311831847,-500.0,0.00013492,2]
[368702875,1751311831856,-161.380719,0.00013492,2]
[368702877,1751311831871,-303.29450176,0.00013492,2]
[368702880,1751311831881,-320.95502836,0.00013492,2]
[368702883,1751311831891,-500.0,0.00013492,2]
[368702886,1751311831903,-500.0,0.00013492,2]
[368702888,1751311831913,-500.0,0.00013492,2]
[368702890,1751311831923,-500.0,0.00013492,2]
[368702892,1751311831935,-500.0,0.00013492,2]
[368702894,1751311831945,-500.0,0.00013492,2]
[368702896,1751311831955,-500.0,0.00013492,2]
[368702898,1751311831964,-500.0,0.00013492,2]
[368702900,1751311831974,-500.0,0.00013492,2]
[368702902,1751311831983,-500.0,0.00013492,2]
[368702904,1751311831993,-300.0,0.00013492,2]
[368702906,1751311832002,-300.0,0.00013492,2]
[368702908,1751311832011,-300.0,0.00013492,2]
[368702910,1751311832020,-300.0,0.00013492,2]
[368702913,1751311832030,-300.0,0.00013492,2]
[368702916,1751311832040,-300.0,0.00013492,2]
[368702919,1751311832049,-300.0,0.00013492,2]
[368702922,1751311832059,-300.0,0.00013492,2]
[368702925,1751311832068,-300.0,0.00013492,2]
[368702928,1751311832077,-300.0,0.00013492,2]
[368702931,1751311832087,-300.0,0.00013492,2]
[368702934,1751311832097,-400.0,0.00013492,2]
[368702937,1751311832107,-300.0,0.00013492,2]
[368702940,1751311832118,-300.0,0.00013492,2]
[368702942,1751311832127,-300.0,0.00013492,2]
[368702944,1751311832137,-300.0,0.00013492,2]
[368702945,1751311832147,-300.0,0.00013492,2]
[368702946,1751311832156,-300.0,0.00013492,2]
[368702948,1751311832166,-300.0,0.00013492,2]
[368702950,1751311832176,-300.0,0.00013492,2]
[368702952,1751311832185,-300.0,0.00013492,2]
[368702954,1751311832195,-300.0,0.00013492,2]
[368702956,1751311832204,-300.0,0.00013492,2]
[368702957,1751311832214,-63178.0,0.000135,2]
[368702958,1751311832223,-5196.99176489,0.00013522,2]
[368702959,1751311832233,-5196.99176486,0.00013564,2]
[368702960,1751311832243,-400.0,0.000136,4]
[368702961,1751311832253,-463.7853765,0.00013606,2]
[368702962,1751311832265,-4733.20638836,0.00013606,2]
[368702963,1751311832275,-1128.0,0.00013647,2]
[368702964,1751311832285,-5196.99176486,0.00013648,2]
[368702965,1751311832295,-150.0,0.00013675,2]
[368702966,1751311832304,-5196.99176486,0.0001369,2]
[368702967,1751311832313,-200.0,0.00013699,2]
[368702968,1751311832325,-785.04,0.00013699,2]
[368702969,1751311832335,-5575.53,0.00013699,2]
[368702970,1751311832344,-551.79,0.00013699,2]
[368702971,1751311832354,-1300.0,0.000137,5]
[368702972,1751311832364,-164.77,0.00013703,2]
[368702973,1751311832374,-670.27047511,0.00013713,2]
[368702974,1751311832384,-170.961138,0.00013719,2]
[368702975,1751311832394,-5196.99176486,0.00013732,2]
[368702976,1751311832403,-847.68488977,0.00013733,2]
[368702977,1751311832413,-202.0,0.00013754,2]
[368702978,1751311832423,-517.418,0.0001376,2]
[368702979,1751311832432,-5196.99176486,0.00013774,2]
[368702980,1751311832441,-1000.0,0.00013785,2]
[368702981,1751311832451,-462.03085916,0.0001379,2]
[368702982,1751311832474,-485.96914084,0.0001379,2]
[368702983,1751311832483,-2500.0,0.00013799,2]
[368702984,1751311832493,-194.9397,0.000138,2]
[368702985,1751311832502,-114.94988895,0.000138,5]
[368702986,1751311832528,-85.05011105,0.000138,5]
[368702987,1751311832537,-194.69408577,0.00013808,2]
[368702988,1751311832549,-604.89591423,0.00013808,2]
[368702989,1751311832558,-203.89829717,0.00013811,2]
[368702990,1751311832568,-5196.99176486,0.00013816,2]
[368702991,1751311832577,-5196.99176486,0.00013858,2]
[368702992,1751311832587,-65660.90786153,0.0001386,2]
[368702993,1751311832596,-164.26235182,0.00013873,2]
[368702994,1751311832606,-2500.13930249,0.00013873,2]
[368702995,1751311832615,-835.8297818,0.00013884,2]
[368702996,1751311832624,-639.0,0.00013885,2]
[368702997,1751311832634,-2009.0,0.00013885,2]
[368702998,1751311832644,-804.0,0.00013885,2]
[368702999,1751311832654,-1281.0,0.00013885,2]
[368703000,1751311832664,-560.0,0.00013885,2]
[368703001,1751311832673,-930.0,0.00013885,2]
[368703002,1751311832683,-1679.0,0.00013885,2]
[368703003,1751311832694,-592.0,0.00013885,2]
[368703004,1751311832703,-1163.0,0.00013885,2]
[368703005,1751311832714,-4105.0,0.00013885,2]
[368703006,1751311832724,-200.0,0.00013888,2]
[368703007,1751311832735,-2680.5296,0.000139,2]
[368703008,1751311832746,-5000.0,0.000139,2]
[368703009,1751311832756,-164.13878723,0.000139,2]
[368703010,1751311832766,-374.64025656,0.000139,2]
[368703011,1751311832779,-5196.99176486,0.000139,2]
[368703012,1751311832792,-10249.57731673,0.000139,2]
[368703013,1751311832801,-533.46457364,0.000139,2]
[368703014,1751311832811,-189.98421408,0.000139,2]
[368703015,1751311832820,-200.0,0.000139,5]
[368703016,1751311832830,-2459.6484847,0.0001392,2]
[368703017,1751311832841,-500.0,0.00013973,2]
[368703018,1751311832851,-500.0,0.00013973,2]
[368703019,1751311832861,-500.0,0.00013973,2]
[368703020,1751311832872,-500.0,0.00013973,2]
[368703021,1751311832881,-500.0,0.00013973,2]
[368703022,1751311832891,-150.0,0.00013973,2]
[368703023,1751311832901,-199.3476315,0.00013973,2]
[368703024,1751311832911,-150.0,0.00013973,2]
[368703025,1751311832922,-150.0,0.00013973,2]
[368703026,1751311832931,-500.0,0.00013973,2]
[368703027,1751311832941,-150.0,0.00013973,2]
[368703028,1751311832951,-150.0,0.00013973,2]
[368703029,1751311832960,-500.0,0.00013973,2]
[368703030,1751311832969,-500.0,0.00013973,2]
[368703031,1751311832985,-500.0,0.00013973,2]
[368703032,1751311832995,-527.0,0.00013973,2]
[368703033,1751311833005,-150.0,0.00013973,2]
[368703034,1751311833015,-500.0,0.00013973,2]
[368703035,1751311833025,-500.0,0.00013973,2]
[368703036,1751311833036,-629.0,0.00013973,2]
[368703037,1751311833048,-150.0,0.00013973,2]
[368703038,1751311833058,-500.0,0.00013973,2]
[368703039,1751311833069,-1573.0,0.00013973,2]
[368703040,1751311833079,-3584.0,0.00013973,2]
[368703041,1751311833090,-150.0,0.00013973,2]
[368703042,1751311833100,-150.90069428,0.00013973,2]
[368703043,1751311833110,-150.0,0.00013973,2]
[368703044,1751311833125,-500.0,0.00013973,2]
[368703045,1751311833135,-157.89978666,0.00013973,2]
[368703046,1751311833146,-500.0,0.00013973,2]
[368703047,1751311833156,-500.0,0.00013973,2]
[368703048,1751311833167,-150.0,0.00013973,2]
[368703049,1751311833177,-500.0,0.00013973,2]
[368703050,1751311833187,-150.0,0.00013973,2]
[368703051,1751311833197,-500.0,0.00013973,2]
[368703052,1751311833208,-426.0,0.00013973,2]
[368703053,1751311833218,-500.0,0.00013973,2]
[368703054,1751311833229,-445.75622633,0.00013999,2]
[368703055,1751311833239,-500.0,0.00013999,2]
[368703056,1751311833249,-385.7782474,0.00013999,2]
[368703057,1751311833259,-500.0,0.00013999,2]
[368703058,1751311833269,-500.0,0.00013999,2]
[368703059,1751311833279,-250.93866397,0.00013999,2]
[368703060,1751311833289,-162.02935843,0.00013999,2]
[368703061,1751311833299,-500.0,0.00013999,2]
[368703062,1751311833309,-522.47639174,0.00013999,2]
[368703063,1751311833318,-460.0,0.00013999,2]
[368703064,1751311833328,-560.0,0.00013999,2]
[368703065,1751311833338,-500.0,0.00013999,2]
[368703066,1751311833349,-3189.28472239,0.00013999,2]
[368703067,1751311833359,-59588.10971278,0.00014,2]
[368703068,1751311833376,-127675.27494278,0.00014,2]
[368703069,1751311833540,-1446.7187223,0.00014,2]
[368703077,1751311838104,-150.0,0.00013738,2]
[368703079,1751311838114,-150.0,0.00013754,2]
[368703081,1751311838124,-7149.0,0.0001379,2]
[368703083,1751311838134,-150.0,0.00013795,2]
[368703085,1751311838143,-122.20247135,0.00013874,2]
[368703179,1751311839001,-8.16450856,0.00013874,2]
[368703191,1751311840118,-150.0,0.00013802,2]
[368703192,1751311840129,-19.63302009,0.00013874,2]
[368703193,1751311840138,-150.0,0.00013902,2]
[368703194,1751311840147,-150.0,0.0001394,2]
[368703195,1751311840157,-32.85997991,0.00014,2]
[368703196,1751311840197,-538.55,0.00014,2]
[368703197,1751311840387,-150.0,0.00013858,2]
[368703198,1751311840397,-150.0,0.00013969,2]
[368703199,1751311840406,-333.33432435,0.00014,2]
[368703285,1751311843367,-150.0,0.00013756,2]
[368703286,1751311843377,-300.0,0.00013771,2]
[368703287,1751311843387,-150.0,0.00013778,2]
[368703288,1751311843396,-156.0,0.0001379,2]
[368703289,1751311843406,-150.0,0.00013791,2]
[368703290,1751311843415,-150.0,0.00013795,2]
[368703291,1751311843425,-150.0,0.00013812,2]
[368703292,1751311843435,-150.0,0.00013828,2]
[368703293,1751311843444,-150.0,0.00013839,2]
[368703294,1751311843453,-150.0,0.00013842,2]
[368703295,1751311843463,-150.0,0.00013843,2]
[368703296,1751311843472,-150.0,0.0001386,2]
[368703297,1751311843481,-150.0,0.00013883,2]
[368703298,1751311843490,-150.0,0.00013933,2]
[368703299,1751311843500,-150.0,0.00013944,2]
[368703300,1751311843509,-150.0,0.00013955,2]
[368703301,1751311843519,-150.0,0.00013965,2]
[368703302,1751311843528,-150.0,0.00013996,2]
[368703303,1751311843537,-984864.28882491,0.00014,2]
[368703304,1751311843547,-594834.44595694,0.00014,2]
[368703307,1751311845410,-630.75517559,0.00014,2]
[368703310,1751311935959,23900.0,0.00013046,2]
[368703311,1751311940660,13207.0,0.00013029,2]
[368703312,1751311974766,200.0,0.0001301,2]
[368703313,1751311978438,904.19,0.0001301,2]
[368703314,1751311988972,274.78,0.00012997,2]
[368703315,1751311991104,952.13,0.00012997,2]
[368703316,1751312001678,1000.0,0.00012987,2]
[368703317,1751312016798,2400.35,0.00012987,2]
[368703318,1751312051984,173.36,0.00012926,2]
[368703319,1751312084417,2751.0,0.00012929,2]
[368703324,1751312228053,250.0,0.00012915,2]
[368703325,1751312236177,282.35,0.00012915,2]
[368703326,1751312301595,455.85,0.00012917,2]
[368703329,1751312380411,187.78,0.00012917,2]
[368703330,1751312413240,150.0,0.00012913,2]
[368703332,1751312452907,5000.0,0.0001291,2]
[368703336,1751312598904,200.0,0.00012844,7]